fUST/lending_fUST_20250820
["ID","MTS","AMOUNT","RATE_DAILY","PERIOD"]
[380341023,1755698992498,-8077.0,0.00048,120]
[380341024,1755698992525,-1027.179266,0.00048,60]
[380341025,1755698992549,-157.0,0.000483,120]
[380341026,1755698992573,-1100.0,0.00048323,60]
[380341027,1755698992596,-9272.23491065,0.00048398,120]
[380341028,1755698992619,-300.0,0.000487,120]
[380341029,1755698992642,-437.6809126,0.00048793,120]
[380341030,1755698992667,-393.91282134,0.000488,120]
[380341031,1755698992690,-358.95719758,0.00048803,120]
[380341032,1755698992713,-358.95719758,0.00048805,120]
[380341033,1755698992738,-323.06147782,0.00048806,120]
[380341034,1755698992762,-261.67979703,0.0004881,120]
[380341035,1755698992786,-437.6809126,0.00048811,120]
[380341036,1755698992810,-261.67979703,0.00048812,120]
[380341037,1755698992834,-323.06147782,0.00048816,120]
[380341038,1755698992858,-393.91282134,0.00048818,120]
[380341039,1755698992883,-261.67979703,0.00048823,120]
[380341040,1755698992910,-437.6809126,0.00048827,120]
[380341041,1755698992936,-323.06147782,0.00048829,120]
[380341042,1755698992962,-358.95719758,0.0004883,120]
[380341043,1755698992987,-393.91282134,0.00048836,120]
[380341044,1755698993014,-323.06147782,0.00048837,120]
[380341045,1755698993038,-290.75533004,0.00048839,120]
[380341046,1755698993061,-437.6809126,0.0004885,120]
[380341047,1755698993086,-261.67979703,0.00048856,120]
[380341048,1755698993110,-358.95719758,0.0004886,120]
[380341049,1755698993136,-393.91282134,0.00048867,120]
[380341050,1755698993163,-290.75533004,0.00048872,120]
[380341051,1755698993187,-290.75533004,0.00048875,120]
[380341052,1755698993213,-290.75533004,0.00048879,120]
[380341053,1755698993238,-2000.0,0.000489,120]
[380341054,1755698993262,-150.0,0.00049,120]
[380341055,1755698993287,-24905.44266524,0.00049,120]
[380341056,1755698993312,-157.0,0.000493,120]
[380341057,1755698999599,151.0,0.00049015,40]
[380341058,1755698999794,222.32682312,0.00049015,40]
[380341059,1755699000094,892.77478874,0.0003,120]
[380341060,1755699005902,-10144.39966352,0.00027144,31]
[380341061,1755699005929,-300.20951377,0.00027144,50]
[380341062,1755699005957,-163010.43132101,0.00027144,30]
[380341063,1755699005983,-5215.1335581,0.00027144,30]
[380341064,1755699006009,-6190.29647613,0.00027144,30]
[380341065,1755699006032,-41357.6291758,0.00027144,30]
[380341066,1755699006058,-19166.96600902,0.00027144,30]
[380341067,1755699006083,-18036.85470155,0.00027144,30]
[380341068,1755699006108,-647764.2939559,0.00027144,30]
[380341069,1755699006133,-30469.71684283,0.00027144,30]
[380341070,1755699006158,-4442.3540918,0.00027144,35]
[380341071,1755699006186,-511453.59635595,0.00027144,32]
[380341072,1755699006210,-75254.0,0.00027144,32]
[380341073,1755699006236,-14494.65226117,0.00027144,30]
[380341074,1755699006260,-752.06634104,0.00027144,35]
[380341075,1755699006286,-1484.92,0.00027144,30]
[380341076,1755699006312,-643.532771,0.00027144,35]
[380341077,1755699006338,-3061.9815981,0.00027144,30]
[380341078,1755699006363,-624.94,0.00027144,30]
[380341079,1755699006388,-727.6907448,0.00027144,35]
[380341080,1755699006417,-50000.03253138,0.00027144,30]
[380341081,1755699006444,-2000.0,0.00027144,30]
[380341082,1755699006469,-30000.0,0.00027144,30]
[380341083,1755699006496,-5060.89860194,0.00027144,30]
[380341084,1755699006521,-275.21491765,0.00027144,30]
[380341085,1755699006545,-1662.75625168,0.00027144,30]
[380341086,1755699006569,-1047.7,0.00027144,30]
[380341087,1755699006593,-568.675815,0.00027144,35]
[380341136,1755699031894,-609.36883394,0.000199,2]
[380341138,1755699031903,-160.0,0.0002006,2]
[380341140,1755699031913,-501.0,0.00020833,2]
[380341142,1755699031922,-1043.32150501,0.00022,2]
[380341144,1755699031933,-160.0,0.00022064,2]
[380341146,1755699031943,-160.0,0.00022064,2]
[380341149,1755699031952,-160.0,0.00022064,2]
[380341152,1755699031962,-718.07213339,0.00022086,2]
[380341155,1755699031971,-300.0,0.00022098,2]
[380341158,1755699031981,-1200.0,0.00022098,2]
[380341160,1755699031990,-480.0,0.00022099,2]
[380341162,1755699031999,-480.0,0.00022099,2]
[380341164,1755699032008,-480.0,0.00022099,2]
[380341166,1755699032017,-480.0,0.00022099,2]
[380341168,1755699032026,-480.0,0.00022099,2]
[380341170,1755699032036,-480.0,0.00022099,2]
[380341172,1755699032045,-480.0,0.00022099,2]
[380341174,1755699032054,-480.0,0.00022099,2]
[380341176,1755699032063,-480.0,0.00022099,2]
[380341178,1755699032072,-480.0,0.00022099,2]
[380341180,1755699032083,-480.0,0.00022099,2]
[380341182,1755699032092,-480.0,0.00022099,2]
[380341185,1755699032102,-480.0,0.00022099,2]
[380341188,1755699032111,-480.0,0.00022099,2]
[380341190,1755699032120,-480.0,0.00022099,2]
[380341192,1755699032130,-482.86,0.00022099,2]
[380341194,1755699032139,-483.45617818,0.00022099,2]
[380341196,1755699032149,-343.52,0.00022099,2]
[380341198,1755699032158,-480.0,0.00022099,2]
[380341200,1755699032168,-480.0,0.00022099,2]
[380341202,1755699032177,-506.36316522,0.00022099,2]
[380341204,1755699032189,-480.0,0.00022099,2]
[380341206,1755699032198,-480.0,0.00022099,2]
[380341208,1755699032207,-480.0,0.00022099,2]
[380341210,1755699032216,-480.0,0.00022099,2]
[380341212,1755699032225,-483.71013519,0.00022099,2]
[380341214,1755699032234,-480.0,0.00022099,2]
[380341216,1755699032244,-483.99168845,0.00022099,2]
[380341217,1755699032253,-480.47,0.00022099,2]
[380341219,1755699032263,-476.19882466,0.00022099,2]
[380341221,1755699032272,-480.0,0.00022099,2]
[380341235,1755699032407,-480.0,0.000221,2]
[380341237,1755699032420,-482.71361276,0.000221,2]
[380341239,1755699032430,-480.0,0.000221,2]
[380341241,1755699032445,-480.0,0.000221,2]
[380341243,1755699032455,-480.0,0.000221,2]
[380341245,1755699032465,-480.0,0.000221,2]
[380341247,1755699032474,-480.0,0.000221,2]
[380341249,1755699032485,-480.0,0.000221,2]
[380341252,1755699032494,-480.0,0.000221,2]
[380341254,1755699032504,-480.0,0.000221,2]
[380341256,1755699032514,-481.8081341,0.000221,2]
[380341258,1755699032525,-473.71875316,0.000221,2]
[380341259,1755699032534,-432.37722739,0.000221,2]
[380341262,1755699032544,-480.0,0.000221,2]
[380341264,1755699032553,-480.0,0.000221,2]
[380341266,1755699032563,-524.35,0.000221,2]
[380341268,1755699032572,-483.93552723,0.000221,2]
[380341270,1755699032581,-480.0,0.000221,2]
[380341272,1755699032590,-480.0,0.000221,2]
[380341274,1755699032599,-439.58842587,0.000221,2]
[380341275,1755699032608,-370.888998,0.000221,2]
[380341277,1755699032617,-480.0,0.000221,2]
[380341279,1755699032626,-480.0,0.000221,2]
[380341281,1755699032635,-362.69283602,0.000221,2]
[380341283,1755699032645,-480.0,0.000221,2]
[380341285,1755699032654,-164.48401788,0.000221,2]
[380341287,1755699032666,-315.51598212,0.000221,2]
[380341289,1755699032675,-480.0,0.000221,2]
[380341291,1755699032688,-480.0,0.000221,2]
[380341293,1755699032697,-480.0,0.000221,2]
[380341295,1755699032706,-480.0,0.000221,2]
[380341297,1755699032717,-480.0,0.000221,2]
[380341299,1755699032726,-480.0,0.000221,2]
[380341301,1755699032735,-480.0,0.000221,2]
[380341303,1755699032744,-480.0,0.000221,2]
[380341305,1755699032753,-451.29,0.000221,2]
[380341307,1755699032762,-208.12300978,0.000221,2]
[380341309,1755699032772,-480.0,0.000221,2]
[380341311,1755699032781,-480.0,0.000221,2]
[380341313,1755699032790,-270.38548901,0.000221,2]
[380341418,1755699037795,-480.0,0.00022099,2]
[380341420,1755699037805,-191.26117789,0.000221,2]
[380341422,1755699037814,-480.0,0.000221,2]
[380341424,1755699037823,-294.99157599,0.000221,2]
[380341426,1755699037833,-480.0,0.000221,2]
[380341428,1755699037842,-480.0,0.000221,2]
[380341430,1755699037850,-480.0,0.000221,2]
[380341432,1755699037859,-270.31621302,0.000221,2]
[380341434,1755699037871,-209.68378698,0.000221,2]
[380341436,1755699037880,-149.51248522,0.000221,2]
[380341438,1755699037891,-330.48751478,0.000221,2]
[380341441,1755699037900,-245.23243078,0.000221,2]
[380341443,1755699037909,-480.0,0.000221,2]
[380341446,1755699037919,-480.0,0.000221,2]
[380341449,1755699037929,-480.0,0.000221,2]
[380341452,1755699037941,-480.0,0.000221,2]
[380341455,1755699037950,-480.0,0.000221,2]
[380341457,1755699037960,-480.0,0.000221,2]
[380341459,1755699037970,-482.0498225,0.000221,2]
[380341461,1755699037979,-230.87692944,0.000221,2]
[380341463,1755699037991,-263.56912922,0.000221,2]
[380341465,1755699038000,-480.0,0.000221,2]
[380341467,1755699038009,-483.78451984,0.000221,2]
[380341468,1755699038018,-189.64637926,0.000221,2]
[380341469,1755699038029,-290.35362074,0.000221,2]
[380341470,1755699038038,-485.94000795,0.000221,2]
[380341471,1755699038047,-480.0,0.000221,2]
[380341472,1755699038057,-480.0,0.000221,2]
[380341473,1755699038066,-484.19556962,0.000221,2]
[380341474,1755699038075,-951.04,0.000221,2]
[380341475,1755699038085,-480.0,0.000221,2]
[380341476,1755699038095,-480.0,0.000221,2]
[380341477,1755699038105,-480.43681882,0.000221,2]
[380341478,1755699038114,-480.0,0.000221,2]
[380341479,1755699038123,-71.81654743,0.000221,2]
[380341480,1755699038135,-408.18345257,0.000221,2]
[380341481,1755699038145,-1048.11,0.00022101,2]
[380341482,1755699038155,-659.12820173,0.00022106,2]
[380341483,1755699038165,-386.7798227,0.00022356,2]
[380341484,1755699038178,-386.74028171,0.00022356,2]
[380341545,1755699039806,-0.03954099,0.00022356,2]
[380341546,1755699039816,-386.7798227,0.00022356,2]
[380341547,1755699039825,-386.7798227,0.00022356,2]
[380341548,1755699039835,-573.05,0.00022373,2]
[380341549,1755699039844,-219.18,0.00022373,2]
[380341550,1755699039854,-579.16,0.00022373,2]
[380341551,1755699039863,-480.0,0.00022373,2]
[380341552,1755699039872,-480.0,0.00022373,2]
[380341553,1755699039882,-493.34,0.00022374,2]
[380341554,1755699039892,-481.98880445,0.00022374,2]
[380341555,1755699039902,-480.0,0.00022374,2]
[380341556,1755699039911,-482.71,0.00022374,2]
[380341557,1755699039921,-482.67522471,0.00022374,2]
[380341558,1755699039931,-480.0,0.00022374,2]
[380341559,1755699039943,-433.95,0.00022374,2]
[380341560,1755699039954,-264.77212595,0.00022374,2]
[380341561,1755699039966,-266.80787405,0.00022374,2]
[380341562,1755699039976,-460.0,0.00022374,2]
[380341563,1755699039985,-143.80443935,0.00022374,2]
[380341564,1755699040001,-480.0,0.000221,2]
[380341565,1755699040011,-13.78851806,0.00022374,2]
[380341566,1755699040022,-446.81112831,0.00022374,2]
[380341567,1755699040032,-542.42,0.00022374,2]
[380341568,1755699040040,-480.0,0.00022374,2]
[380341569,1755699040049,-126.56887169,0.00022374,2]
[380341570,1755699040060,-353.43112831,0.00022374,2]
[380341571,1755699040069,-217.55775708,0.00022374,2]
[380341572,1755699040078,-482.5623866,0.00022374,2]
[380341573,1755699040087,-480.0,0.00022374,2]
[380341574,1755699040096,-480.0,0.00022374,2]
[380341575,1755699040105,-142.88952557,0.00022374,2]
[380341640,1755699044342,-337.11047443,0.00022374,2]
[380341641,1755699044352,-480.0,0.00022374,2]
[380341642,1755699044362,-571.38,0.00022374,2]
[380341643,1755699044371,-480.0,0.00022374,2]
[380341644,1755699044381,-480.0,0.00022374,2]
[380341645,1755699044390,-480.0,0.00022374,2]
[380341646,1755699044399,-480.0,0.00022374,2]
[380341648,1755699044408,-507.97,0.00022374,2]
[380341651,1755699044417,-951.04,0.00022374,2]
[380341652,1755699044426,-355.45590098,0.00022374,2]
[380341655,1755699044439,-480.0,0.00022374,2]
[380341657,1755699044450,-1048.11,0.00022375,2]
[380341658,1755699044459,-600.0,0.0002254,20]
[380341660,1755699044468,-755.0,0.00022638,2]
[380341662,1755699044479,-480.0,0.00022647,2]
[380341665,1755699044488,-480.0,0.00022647,2]
[380341667,1755699044497,-397.0,0.00022648,2]
[380341669,1755699044507,-480.0,0.00022648,2]
[380341670,1755699044518,-480.0,0.00022648,2]
[380341672,1755699044528,-480.0,0.00022648,2]
[380341674,1755699044538,-385.73734316,0.00022648,2]
[380341677,1755699044548,-951.04,0.00022648,2]
[380341679,1755699044557,-1048.11,0.00022649,2]
[380341681,1755699044566,-892.77478874,0.00022697,2]
[380341683,1755699044576,-1043.32150494,0.00022721,2]
[380341684,1755699044585,-215.82729805,0.0002279,2]
[380341686,1755699044594,-232.24568399,0.0002279,2]
[380341688,1755699044603,-216.9170744,0.0002279,2]
[380341690,1755699044612,-375.94359665,0.0002279,2]
[380341692,1755699044621,-844.05985274,0.0002279,2]
[380341694,1755699044630,-160.0,0.0002279,2]
[380341696,1755699044639,-160.0,0.0002279,2]
[380341698,1755699044649,-480.0,0.00022921,2]
[380341700,1755699044658,-480.0,0.00022921,2]
[380341702,1755699044667,-410.72,0.00022922,2]
[380341703,1755699044676,-480.0,0.00022922,2]
[380341705,1755699044685,-480.0,0.00022922,2]
[380341706,1755699044695,-951.04,0.00022922,2]
[380341708,1755699044704,-1048.11,0.00022923,2]
[380341710,1755699044714,-460.68708068,0.00023,2]
[380341712,1755699044723,-670.45445759,0.00023,7]
[380341713,1755699044732,-160.0,0.00023,2]
[380341714,1755699044742,-293.7943279,0.00023041,2]
[380341715,1755699044752,-581.0009137,0.00023041,2]
[380341716,1755699044761,-160.8718701,0.00023041,2]
[380341717,1755699044770,-160.8718701,0.00023041,2]
[380341718,1755699044779,-581.0009137,0.00023041,2]
[380341719,1755699044788,-160.8718701,0.00023041,2]
[380341720,1755699044797,-581.0009137,0.00023041,2]
[380341721,1755699044806,-397.69,0.00023195,2]
[380341722,1755699044817,-480.0,0.00023196,2]
[380341723,1755699044826,-480.0,0.00023196,2]
[380341724,1755699044835,-951.04,0.00023196,2]
[380341725,1755699044844,-1048.11,0.00023197,2]
[380341726,1755699044854,-151.0,0.00023263,2]
[380341727,1755699044863,-245.5775819,0.00023263,2]
[380341728,1755699044872,-151.55192868,0.00023263,2]
[380341729,1755699044881,-151.0,0.00023263,2]
[380341730,1755699044890,-151.0,0.00023263,2]
[380341731,1755699044899,-151.0,0.00023263,2]
[380341732,1755699044908,-151.25308997,0.00023263,2]
[380341733,1755699044918,-151.31325789,0.00023263,2]
[380341734,1755699044928,-151.0049699,0.00023263,2]
[380341735,1755699044937,-151.13771166,0.00023263,2]
[380341736,1755699044947,-203.71,0.000233,2]
[380341737,1755699044956,-1000.000001,0.000233,2]
[380341738,1755699044965,-190.999227,0.000233,2]
[380341739,1755699044974,-386.7798227,0.00023315,2]
[380341740,1755699044984,-386.7798227,0.00023315,2]
[380341742,1755699044993,-386.7798227,0.00023315,2]
[380341743,1755699045002,-386.7798227,0.00023315,2]
[380341744,1755699045012,-386.7798227,0.00023315,2]
[380341745,1755699045020,-818.8466113,0.00023315,2]
[380341746,1755699045029,-452.5483358,0.00023315,2]
[380341747,1755699045039,-4789.64751848,0.0002338,2]
[380341748,1755699045051,-11889.0,0.0002338,2]
[380341749,1755699045062,-847543.35568264,0.0002338,2]
[380341750,1755699045071,-250.55074681,0.00023422,2]
[380341751,1755699045081,-1043.32150494,0.00023441,2]
[380341752,1755699045090,-168.0,0.00023443,2]
[380341753,1755699045099,-151.0,0.00023459,5]
[380341754,1755699045108,-480.0,0.0002347,2]
[380341755,1755699045117,-480.0,0.0002347,2]
[380341756,1755699045126,-951.04,0.0002347,2]
[380341757,1755699045136,-1048.11,0.00023471,2]
[380341758,1755699045145,-151.0,0.00023537,2]
[380341759,1755699045155,-151.0,0.00023537,2]
[380341760,1755699045164,-151.0,0.00023537,2]
[380341761,1755699045173,-151.89224758,0.00023537,2]
[380341762,1755699045183,-1095.50535511,0.00023559,2]
[380341763,1755699045193,-3674.42236486,0.00023559,2]
[380341764,1755699045202,-162.28365,0.00023562,2]
[380341765,1755699045211,-581.0009137,0.00023562,2]
[380341766,1755699045219,-168.0,0.00023578,2]
[380341767,1755699045229,-150.0,0.00023638,2]
[380341768,1755699045238,-591.0,0.0002364,2]
[380341769,1755699045247,-609.36883365,0.00023642,2]
[380341770,1755699045257,-591.0,0.00023646,2]
[380341771,1755699045266,-646.4,0.00023647,3]
[380341773,1755699045275,-323.2,0.00023647,3]
[380341774,1755699045284,-161.6,0.00023647,3]
[380341775,1755699045293,-484.8,0.00023647,3]
[380341777,1755699045303,-899.88880944,0.00023656,2]
[380341778,1755699045311,-289250.88066021,0.00023657,2]
[380341779,1755699045323,-9131.9999985,0.00023657,2]
[380341781,1755699045338,-56800.0,0.00023657,2]
[380341831,1755699045894,-480.0,0.000221,2]
[380341833,1755699045904,-892.77478874,0.00022697,2]
[380341835,1755699045913,-4256.74611946,0.00023657,2]
[380341838,1755699045924,-10560.37322183,0.00023657,2]
[380341839,1755699045934,-408.0,0.00023659,2]
[380341842,1755699045945,-204.64372186,0.00023673,2]
[380341844,1755699045955,-500.0,0.00023673,2]
[380341845,1755699045964,-168.0,0.00023689,2]
[380341847,1755699045974,-151.0,0.00023713,5]
[380341850,1755699045983,-591.0,0.00023715,2]
[380341851,1755699045993,-480.0,0.00023744,2]
[380341854,1755699046003,-480.0,0.00023744,2]
[380341856,1755699046012,-951.04,0.00023744,2]
[380341858,1755699046022,-1048.11,0.00023745,2]
[380341860,1755699046032,-151.0,0.00023811,2]
[380341862,1755699046041,-151.0,0.00023811,2]
[380341864,1755699046051,-151.0,0.00023811,2]
[380341866,1755699046060,-1095.50535511,0.00023816,2]
[380341868,1755699046069,-591.0,0.0002384,2]
[380341870,1755699046079,-160.8718701,0.00023863,2]
[380341872,1755699046088,-581.0009137,0.00023863,2]
[380341873,1755699046097,-581.0009137,0.00023863,2]
[380341875,1755699046107,-160.8718701,0.00023863,2]
[380341877,1755699046116,-160.8718701,0.00023863,2]
[380341880,1755699046126,-581.0009137,0.00023863,2]
[380341882,1755699046135,-581.0009137,0.00023863,2]
[380341884,1755699046145,-581.0009137,0.00023863,2]
[380341886,1755699046154,-581.0009137,0.00023863,2]
[380341888,1755699046162,-1160.5101925,0.00023863,2]
[380341890,1755699046172,-581.0009137,0.00023863,2]
[380341892,1755699046181,-229.8143714,0.00023863,2]
[380341893,1755699046191,-160.0,0.00023872,2]
[380341895,1755699046203,-500.0,0.00023873,2]
[380341897,1755699046213,-500.0,0.00023873,2]
[380341899,1755699046222,-500.0,0.00023873,2]
[380341901,1755699046231,-500.0,0.00023873,2]
[380341903,1755699046242,-500.0,0.00023873,2]
[380341905,1755699046252,-500.0,0.00023873,2]
[380341907,1755699046262,-578.20443966,0.00023873,2]
[380341909,1755699046272,-320.74606242,0.00023873,2]
[380341911,1755699046282,-500.0,0.00023873,2]
[380341913,1755699046291,-500.0,0.00023873,2]
[380341915,1755699046300,-249.3,0.00023873,2]
[380341918,1755699046310,-501.84672423,0.00023873,2]
[380341919,1755699046322,-500.0,0.00023873,2]
[380341921,1755699046331,-500.90979466,0.00023873,2]
[380341923,1755699046340,-500.0,0.00023873,2]
[380341936,1755699046456,-502.16544725,0.00023873,2]
[380341939,1755699046465,-500.0,0.00023873,2]
[380341941,1755699046474,-500.0,0.00023873,2]
[380341943,1755699046485,-500.0,0.00023873,2]
[380341945,1755699046494,-500.0,0.00023873,2]
[380341947,1755699046503,-501.85940276,0.00023873,2]
[380341949,1755699046513,-500.0,0.00023873,2]
[380341951,1755699046525,-501.5403866,0.00023873,2]
[380341953,1755699046535,-503.6102621,0.00023873,2]
[380341955,1755699046545,-500.0,0.00023873,2]
[380341957,1755699046555,-500.0,0.00023873,2]
[380341959,1755699046564,-160.31438668,0.00023873,2]
[380341961,1755699046573,-500.0,0.00023873,2]
[380341963,1755699046583,-501.31855364,0.00023873,2]
[380341965,1755699046592,-414.34126824,0.00023873,2]
[380341967,1755699046601,-500.0,0.00023873,2]
[380341969,1755699046611,-500.80348526,0.00023873,2]
[380341971,1755699046621,-421.44432795,0.00023873,2]
[380342200,1755699214618,-3000000.0,0.00027169,20]
[380342201,1755699224978,-3000000.0,0.00027169,20]
[380342202,1755699237827,-8688927.8697226,0.00027169,20]
[380342203,1755699237856,-1311072.1302774,0.00027169,20]
[380342204,1755699267496,-2017007.57675365,0.00027169,20]
[380342205,1755699267526,-1258581.08232335,0.00027169,20]
[380342206,1755699267551,-5612334.25586507,0.00027169,20]
[380342207,1755699267578,-1112077.08505793,0.00027169,20]
[380342208,1755699270574,-2613659.39078785,0.00027169,20]
[380342209,1755699270602,-6868784.88221439,0.00027169,20]
[380342210,1755699270630,-517555.72699776,0.00027169,20]
[380347796,1755699635855,528.45278,0.00027,120]
[380348235,1755699706367,166.429071,0.00013699,2]
[380348236,1755699742137,672.25,0.00016094,2]
[380348237,1755699742768,672.25,0.00016094,2]
[380348239,1755699904323,-839932.07385639,0.00027183,20]
[380348240,1755699904355,-393737.68958812,0.00027183,20]
[380348241,1755699904387,-3178279.97001071,0.00027183,20]
[380348242,1755699904419,-1435363.99248736,0.00027183,20]
[380348243,1755699904458,-177707.26752051,0.00027183,20]
[380348244,1755699904519,-1079991.11080553,0.00027183,20]
[380348245,1755699904572,-242087.71345939,0.00027183,20]
[380348246,1755699904615,-2652900.18227199,0.00027183,20]
[380348247,1755699908086,-5459683.18180492,0.00027183,20]
[380348248,1755699908118,-1500000.0,0.00027183,20]
[380348249,1755699908149,-380229.98138495,0.00027183,20]
[380348250,1755699908182,-226219.26369395,0.00027183,20]
[380348251,1755699908216,-274716.18111853,0.00027183,20]
[380348252,1755699908246,-1186550.68861193,0.00027183,20]
[380348253,1755699908276,-972600.70338572,0.00027183,20]
[380348254,1755699912780,-483319.19592828,0.00027183,20]
[380348255,1755699912813,-1893982.53252755,0.00027183,20]
[380348256,1755699912841,-2000.0,0.00027183,30]
[380348257,1755699912870,-1047.7,0.00027183,30]
[380348258,1755699941465,914.27,0.00016094,2]
[380348259,1755699942026,914.27,0.00016094,2]
[380348269,1755700053176,694.84,0.00016094,2]
[380348270,1755700053708,694.84,0.00016094,2]
[380348271,1755700108781,300.45084554,0.00027184,60]
[380348328,1755700112987,385248.11390985,0.00027184,60]
[380350950,1755700235276,-5000.0,0.00019503,2]
[380350951,1755700235285,-11500.0,0.000196,2]
[380350952,1755700235296,-169.1776053,0.000197,2]
[380350954,1755700235305,-157.7258298,0.000197,2]
[380350955,1755700235314,-359.0,0.00019799,2]
[380350956,1755700235324,-154.92006465,0.000198,2]
[380350957,1755700235333,-844.97470281,0.000199,2]
[380350958,1755700235343,-844.97470279,0.00020835,2]
[380350959,1755700235351,-300.0,0.00021043,2]
[380350961,1755700235360,-1200.0,0.00021043,2]
[380350962,1755700235370,-191.26117789,0.00021044,2]
[380350963,1755700235379,-480.0,0.00021044,2]
[380350964,1755700235389,-480.0,0.00021044,2]
[380350966,1755700235398,-480.0,0.00021044,2]
[380350968,1755700235408,-239.20099504,0.00021044,2]
[380350983,1755700235534,-480.0,0.00021044,2]
[380350984,1755700235550,-480.0,0.00021044,2]
[380350985,1755700235558,-347.25731015,0.00021044,2]
[380350986,1755700235568,-511.31713169,0.00021044,2]
[380350987,1755700235577,-480.0,0.00021044,2]
[380350989,1755700235586,-628.36013982,0.00021046,2]
[380350990,1755700235595,-8196.8469741,0.00021046,2]
[380350991,1755700235605,-480.0,0.00021318,2]
[380350992,1755700235615,-480.0,0.00021318,2]
[380350994,1755700235624,-480.0,0.00021318,2]
[380350995,1755700235633,-480.0,0.00021592,2]
[380350996,1755700235643,-480.0,0.00021592,2]
[380350997,1755700235652,-844.97470279,0.00021771,2]
[380350998,1755700235661,-480.0,0.00021866,2]
[380351000,1755700235671,-391.51562042,0.00021866,2]
[380351001,1755700235681,-1020.26502821,0.00021911,2]
[380351002,1755700235690,-199.0,0.00021938,20]
[380351003,1755700235699,-375.94359665,0.00021998,2]
[380351004,1755700235709,-844.05985274,0.00021998,2]
[380351006,1755700235718,-160.0,0.00021998,2]
[380351007,1755700235728,-232.24568399,0.00021998,2]
[380351008,1755700235740,-160.0,0.00021998,2]
[380351009,1755700235748,-159.0,0.00022,2]
[380351011,1755700235757,-199.0,0.00022038,20]
[380351012,1755700235767,-500.0,0.00022073,2]
[380351013,1755700235777,-172.01965017,0.00022073,2]
[380351014,1755700235787,-480.0,0.00022096,2]
[380351016,1755700235795,-480.0,0.00022096,2]
[380351017,1755700235807,-480.0,0.00022097,2]
[380351018,1755700235817,-480.0,0.00022097,2]
[380351019,1755700235827,-481.50181157,0.00022097,2]
[380351020,1755700235836,-480.0,0.00022097,2]
[380351022,1755700235845,-495.76,0.00022097,2]
[380351023,1755700235856,-480.0,0.00022097,2]
[380351024,1755700235866,-429.98,0.00022097,2]
[380351025,1755700235875,-480.0,0.00022097,2]
[380351027,1755700235886,-480.0,0.00022097,2]
[380351028,1755700235895,-480.0,0.00022097,2]
[380351029,1755700235905,-500.0,0.00022097,2]
[380351030,1755700235914,-294.1307865,0.00022097,2]
[380351032,1755700235923,-294.43669644,0.00022097,2]
[380351033,1755700235932,-445.53,0.00022097,2]
[380351034,1755700235940,-236.20914626,0.00022097,2]
[380351035,1755700235950,-462.03835548,0.00022097,2]
[380351036,1755700235959,-480.0,0.00022097,2]
[380351038,1755700235969,-480.0,0.00022097,2]
[380351039,1755700235978,-480.0,0.00022097,2]
[380351040,1755700235990,-480.0,0.00022097,2]
[380351041,1755700235999,-480.0,0.00022097,2]
[380351043,1755700236009,-327.52688257,0.00022097,2]
[380351044,1755700236018,-480.0,0.00022097,2]
[380351045,1755700236028,-480.0,0.00022097,2]
[380351046,1755700236037,-263.97935598,0.00022097,2]
[380351048,1755700236046,-480.0,0.00022097,2]
[380351049,1755700236054,-613.3,0.00022097,2]
[380351050,1755700236063,-480.0,0.00022097,2]
[380351051,1755700236072,-493.64025072,0.00022097,2]